Cogmind - Beta 14 @@@ ROGUE MODE // 2024.11.26 @ 15:07:42 Player: atomicthumbs Result: Destroyed by Y-45 Defender with Beam Rifle Performance ------------- Evolutions (1) 500 Regions Visited (4) 800 Robots Destroyed (49) 245 Value Destroyed (1204) 1204 Prototype IDs (0) 0 Alien Tech Used (0) 0 Bonus (93) 93 TOTAL SCORE: 2842 Bonus ------- High Alert Combat Kills 93 Cogmind --------- Core Integrity 0/400 Matter 201/300 Energy 250/250 System Corruption 0% Temperature Cool (9) Movement Rolling (90) Location -9/Storage Parts ------- > --- POWER (1) -------- Ion Engine > --- PROPULSION (4) --- Armored Wheel Armored Wheel Armored Wheel > --- UTILITY (2) ------ Visual Processing Unit Core Shielding > --- WEAPON (2) ------- Mini Grenade Launcher > --- INVENTORY (5) ---- Improved Heat Sink Rocket Launcher Rocket Launcher Rocket Launcher Peak State ------------ > --- POWER ------------ Light Nuclear Core > --- PROPULSION ------- Armored Wheel Armored Wheel Armored Wheel Armored Wheel > --- UTILITY ---------- Small Storage Unit Signal Interpreter > --- WEAPON ----------- Beam Rifle Slug Cannon > --- INVENTORY -------- Ion Engine Ion Engine Improved Heat Sink High-capacity Storage Unit Beam Rifle EMP Blaster Datajack Maul [Rating: 20] Favorites ----------- Power Light Ion Engine Engine Light Ion Engine Power Core Light Nuclear Core Propulsion Aluminum Leg Treads Light Treads Leg Aluminum Leg Wheel Armored Wheel Flight Unit Flight Unit Utility Small Storage Unit Device Sensor Array Storage Small Storage Unit Processor Signal Interpreter Protection Core Shielding Weapon EM Pulse Gun Energy Gun EM Pulse Gun Ballistic Cannon Slug Cannon Launcher Rocket Launcher Special Melee Weapon Datajack Build | -11 -10 -10 -9 -9 ------- Run | Yrd Mat Min Mat Sto Slots Evolved 2 | . . . 2 . Power . | . . . . . Propulsion 2 | . . . 2 . Utility . | . . . . . Weapon . | . . . . . Parts Attached 43 | . 2 4 25 12 Power 8 | . . 1 4 3 Engine 7 | . . 1 3 3 Core 1 | . . . 1 . Reactor . | . . . . . Propulsion 16 | . . 1 14 1 Treads 4 | . . . 4 . Leg 3 | . . 1 2 . Wheel 5 | . . . 4 1 Hover . | . . . . . Flight 4 | . . . 4 . Utility 4 | . . 1 1 2 Device 1 | . . 1 . . Storage . | . . . . . Processor 2 | . . . 1 1 Hackware . | . . . . . Protection 1 | . . . . 1 Artifact . | . . . . . Weapon 15 | . 2 1 6 6 Energy Gun 4 | . 1 . 3 . Energy Cannon . | . . . . . Ballistic Gun . | . . . . . Ballistic Cannon 3 | . . 1 2 . Launcher 7 | . . . 1 6 Special Weapon . | . . . . . Impact Weapon . | . . . . . Slashing Weapon . | . . . . . Piercing Weapon . | . . . . . Special Melee Weapon 1 | . 1 . . . Unidentified Prototypes . | . . . . . Parts Lost 22 | . . . 10 12 Power 5 | . . . 2 3 Propulsion 6 | . . . 4 2 Utility 3 | . . . 1 2 Weapon 8 | . . . 3 5 Highest Loss Streak 8 | . . . 4 8 To Critical Strikes 1 | . . . . 1 Average Slot Usage (%) 89 | . 85 98 83 94 Engine 10 | . 14 14 8 7 Core 1 | . . . 1 2 Treads 3 | . . . 11 . Leg 14 | . 28 28 6 . Wheel 10 | . . . 2 41 Flight 4 | . . . 12 . Device 4 | . . 12 3 . Storage 11 | . 14 14 11 8 Processor 4 | . . . 5 10 Energy Gun 14 | . 27 17 11 5 Ballistic Cannon 5 | . . 10 7 3 Launcher 3 | . . . 1 12 Peak Build Rating 20 | . 6 11 20 20 Average Rating 11 | . 5 9 12 16 On Entrance 9 | 6 6 6 11 20 Naked Turns . | . . . . . Heaviest Build 22 | 12 12 18 22 20 Greatest Support 63 | 20 20 20 63 48 Greatest Overweight (x) 4 | . . . 4 . Average Overweight (x) . | . . . . . Largest Inventory Capacity 8 | . 8 8 8 8 Average Capacity 7 | . 8 8 8 7 Most Carried 8 | . 8 8 8 8 Average Carried 6 | . 7 7 6 6 Final Capacity 8 | 8 8 8 8 5 Final Carried 8 | 6 8 8 8 4 Class Distribution -------------------- 94% | Mutant 5% | Scavenger-Mutant Dominant Class ---------------- Mutant | -10/Materials Mutant | -10/Mines Mutant | -9/Materials Mutant | -9/Storage Resources | -11 -10 -10 -9 -9 ----------- Run | Yrd Mat Min Mat Sto Matter Collected 1235 | 193 27 76 435 504 Remotely . | . . . . . Salvage Created 1115 | . 64 67 517 467 Parts 85 | . 3 4 45 33 Haulers Intercepted 4 | . . . 2 2 Recyclers Shooed 1 | . . . . 1 Parts Field Recycled . | . . . . . Retrieved Matter . | . . . . . Parts Self-Destructed . | . . . . . Prevented . | . . . . . Kills | -11 -10 -10 -9 -9 ------- Run | Yrd Mat Min Mat Sto Combat Hostiles Destroyed 31 | . 1 2 13 15 Melee 1 | . . . . 1 Guns 6 | . 1 . 5 . Cannons 11 | . . 2 6 3 AOE 13 | . . . 2 11 Classes Destroyed 9 | . 3 1 5 . Worker 2 | . . . 1 1 Builder 4 | . . . 4 . Hauler 4 | . . . 2 2 Recycler 1 | . . . 1 . Operator 2 | . 1 . . 1 Watcher 5 | . 1 . 3 1 Swarmer 8 | . 1 . 4 3 Grunt 15 | . . 2 7 6 Sentry 8 | . . . 2 6 Best Kill Streak 11 | . 1 2 11 8 Combat Bots Only 7 | . 1 2 6 7 Max Kills in Single Turn 4 | . 1 1 4 3 Gunslinging . | . . . . . Exploded 3 | . . . 1 3 Melee 1 | . . . . 1 Uniques/NPCs Destroyed . | . . . . . Combat | -11 -10 -10 -9 -9 -------- Run | Yrd Mat Min Mat Sto Hostile Shots Fired 260 | . 25 11 113 111 Missed 79 | . 7 5 30 37 Damage Taken 2412 | . 144 91 1023 1154 Core 479 | . 57 15 210 197 Absorbed by Shields . | . . . . . Redirected to Shielding 11 | . . . . 11 Core Remaining (%) 85 | 100 . 71 . . Volleys Fired 129 | . 12 6 63 48 Largest 2 | . 2 2 2 2 Hottest 112 | . 80 88 112 66 Shots Fired 186 | . 24 12 93 57 Gun 73 | . 24 6 43 . Cannon 65 | . . 6 39 20 Launcher 48 | . . . 11 37 Special . | . . . . . Kinetic 65 | . . 6 39 20 Thermal 24 | . . . 24 . Explosive 31 | . . . 11 20 Electromagnetic 66 | . 24 6 19 17 Robot Hit Streak 7 | . 7 2 7 5 Robot Miss Streak 4 | . 2 4 4 3 Penetration Max 1 | . . . 1 . Secondary Targets . | . . . . . Shots Hit Robots 97 | . 16 4 47 30 Core Hits 68 | . 3 3 31 31 Critical Kills 3 | . . . 3 . Critical Parts Destroyed 3 | . . . 2 1 Critical Strikes 8 | . . . 7 1 Burn 2 | . . . 2 . Destroy 6 | . . . 5 1 Melee Attacks 1 | . 1 . . . Impact . | . . . . . Slashing . | . . . . . Piercing . | . . . . . Sneak Attacks 1 | . 1 . . . Combat Hostiles . | . . . . . Follow-up Attacks . | . . . . . Damage Inflicted 3392 | . 256 104 1595 1437 Guns 608 | . 231 25 352 . Cannons 917 | . . 79 566 272 Explosions 1836 | . 25 . 677 1134 Melee . | . . . . . Ramming 31 | . . . . 31 Kinetic 917 | . . 79 566 272 Thermal 231 | . 25 . 206 . Explosive 1613 | . . . 677 936 Electromagnetic 600 | . 231 25 146 198 Impact . | . . . . . Slashing . | . . . . . Piercing . | . . . . . Highest Corruption . | . . . . . Average Corruption . | . . . . . Corruption Purged . | . . . . . Corruption Blocked . | . . . . . Overload Shots . | . . . . . Overflow Damage 48 | . . . 36 12 Projectiles 24 | . . . 24 . Explosions 24 | . . . 12 12 Melee . | . . . . . Knockbacks 2 | . . . 2 . Impact . | . . . . . Kinetic 2 | . . . 2 . Secondary . | . . . . . Self-Inflicted Damage 228 | . . . 78 150 Shots 13 | . . . 2 11 Rammed 8 | . . . . 8 Targets Rammed 8 | . . . . 8 Kicked . | . . . . . Crushed . | . . . . . Highest Temperature 538 | . 126 207 538 92 Average Temperature 94 | . 48 103 125 30 Received Heat Transfer 804 | . . 54 384 366 Effects 5 | . . . 5 . Interference 1 | . . . 1 . Matter Decay 1 | . . . 1 . Short Circuit 2 | . . . 2 . Damage (minor) 1 | . . . 1 . Siege Activations . | . . . . . Robots Corrupted . | . . . . . Combat Hostiles . | . . . . . Parts Fried 2 | . 2 . . . Impact Corruptions . | . . . . . Robots Melted . | . . . . . Combat Hostiles . | . . . . . Parts Melted 3 | . . . 3 . Heat Transferred 716 | . 50 . 666 . Parts Sabotaged . | . . . . . Parts Stolen . | . . . . . Parts Stripped . | . . . . . Power Chain Reactions 2 | . 1 . . 1 Alert | -11 -10 -10 -9 -9 ------- Run | Yrd Mat Min Mat Sto Peak Influence 790 | . 94 89 350 790 Initial 96 | . . 36 . 96 Average 158 | . 49 52 166 362 Maximum Alert Level 3 | . . . 1 3 Low Security (%) 68 | . 100 100 62 14 Level 1 24 | . . . 37 53 Level 2 5 | . . . . 24 Level 3 1 | . . . . 6 Level 4 . | . . . . . Level 5 . | . . . . . High Security . | . . . . . Max Security . | . . . . . Squads Dispatched 6 | . 1 . 1 4 Investigation 1 | . . . 1 . Extermination . | . . . . . Reinforcement 3 | . 1 . . 2 Assault 2 | . . . . 2 Garrison . | . . . . . Intercept . | . . . . . Searches Triggered . | . . . . . Construction Impeded . | . . . . . Haulers Reinforced . | . . . . . Active Scanning Responses . | . . . . . Cargo Convoy Interrupts . | . . . . . Stealth | -11 -10 -10 -9 -9 --------- Run | Yrd Mat Min Mat Sto Distress Signals 3 | . . . 1 2 Communications Jammed . | . . . . . Distress Signals . | . . . . . Times Spotted 49 | . 8 2 15 24 Peak Tracking Total 10 | . 4 2 4 10 Tactical Retreats 4 | . 1 . . 3 Traps | -11 -10 -10 -9 -9 ------- Run | Yrd Mat Min Mat Sto Traps Triggered 1 | . 1 . . . Indirectly . | . . . . . Trap Hack Attempts . | . . . . . Triggered . | . . . . . Disarmed . | . . . . . Reprogrammed . | . . . . . Reused . | . . . . . Traps Extracted . | . . . . . Installed . | . . . . . Triggered . | . . . . . Machines | -11 -10 -10 -9 -9 ---------- Run | Yrd Mat Min Mat Sto Machines Disabled 8 | . . . 2 6 Max in Single Turn 1 | . . . 1 1 Machines Repaired . | . . . . . Machines Dismantled . | . . . . . Machines Sabotaged . | . . . . . Overloaded Fab Kills . | . . . . . Hacking | -11 -10 -10 -9 -9 --------- Run | Yrd Mat Min Mat Sto Machines Accessed 10 | . 4 . 5 1 Terminals 9 | . 3 . 5 1 Fabricators . | . . . . . Repair Stations . | . . . . . Recycling Units 1 | . 1 . . . Scanalyzers . | . . . . . Garrison Access . | . . . . . Total Hacks 25 | . 9 . 15 1 Successful 13 | . 5 . 7 1 Failed 12 | . 4 . 8 . Catastrophic 3 | . . . 3 . Database Lockouts . | . . . . . Manual 19 | . 5 . 14 . Terminals 23 | . 7 . 15 1 Fabricators . | . . . . . Repair Stations . | . . . . . Recycling Units 2 | . 2 . . . Scanalyzers . | . . . . . Garrison Access . | . . . . . Terminal Hacks 2 | . . . 1 1 Open Door 1 | . . . . 1 Locate Traps 1 | . . . 1 . Fabricator Hacks . | . . . . . Repair Station Hacks . | . . . . . Recycling Unit Hacks 2 | . 2 . . . Report Inventory 1 | . 1 . . . Retrieve Components 1 | . 1 . . . Scanalyzer . | . . . . . Garrison Access Hacks . | . . . . . Unauthorized Hacks 9 | . 3 . 6 . Terminals 9 | . 3 . 6 . Assimilate 3 | . 1 . 2 . Botnet 6 | . 2 . 4 . Fabricators . | . . . . . Repair Stations . | . . . . . Recycling Units . | . . . . . Scanalyzers . | . . . . . Garrison Access . | . . . . . Data Cores Recovered . | . . . . . Used . | . . . . . Hacking Detections 5 | . 2 . 3 . Full Trace Events 1 | . . . 1 . Feedback Events . | . . . . . Feedback Blocked . | . . . . . Robot Schematics Acquired . | . . . . . Robots Built . | . . . . . Authchips . | . . . . . Time . | . . . . . Total Robot Build Rating . | . . . . . Part Schematics Acquired . | . . . . . Parts Built . | . . . . . Authchips . | . . . . . Time . | . . . . . Total Part Build Rating . | . . . . . Parts Repaired . | . . . . . Time . | . . . . . Parts Recycled . | . . . . . Recycled Matter . | . . . . . Retrieved Matter . | . . . . . Retrieved Components 1 | . 1 . . . Parts Scanalyzed . | . . . . . Part Schematics Acquired . | . . . . . Parts Damaged . | . . . . . Bothacking | -11 -10 -10 -9 -9 ------------ Run | Yrd Mat Min Mat Sto Used RIF Installer . | . . . . . Robots Hacked 1 | . 1 . . . Non-combat 1 | . 1 . . . Combat . | . . . . . Robot Hacks Applied 1 | . 1 . . . no_distress 1 | . 1 . . . Relay Couplers Released . | . . . . . Fabnet Peak Effective % . | . . . . . Robots Rewired . | . . . . . Allies Hacked . | . . . . . Hacks Repelled . | . . . . . Allies | -11 -10 -10 -9 -9 -------- Run | Yrd Mat Min Mat Sto Total Allies . | . . . . . Largest Group . | . . . . . Highest-Rated Group . | . . . . . Highest-Rated Ally . | . . . . . Total Orders . | . . . . . Ally Attacks . | . . . . . Total Damage . | . . . . . Kills . | . . . . . Allies Corrupted . | . . . . . Allies Melted . | . . . . . Intel | -11 -10 -10 -9 -9 ------- Run | Yrd Mat Min Mat Sto Robot Analysis Total . | . . . . . Derelict Logs Recovered . | . . . . . Drone Launches . | . . . . . Drone Recoveries . | . . . . . Exploration | -11 -10 -10 -9 -9 ------------- Run | Yrd Mat Min Mat Sto Turns Passed 1794 | . 397 419 570 408 Spaces Moved 1113 | 1 275 226 312 299 Core 2 | . . . 2 . Treads 82 | . . . 82 . Legs 567 | 1 275 226 65 . Wheels 340 | . . . 41 299 Hover . | . . . . . Flight 122 | . . . 122 . Fastest Speed 29 | 120 120 120 29 90 Average Speed 108 | 120 120 120 109 90 Slowest Speed 250 | 120 120 120 250 90 Overloaded Moves . | . . . . . Propulsion Burnouts . | . . . . . Robots Hopped . | . . . . . Cave-ins Triggered . | . . . . . Exploration Rate (%) 35 | 2 43 46 34 53 Regions Visited 4 Branch Regions 2 Pre-discovered Areas . | . . . . . Known Exits Taken 1 | . . . 1 . Unknown Exits Taken 3 | 1 1 1 . . Scrap Searched 1 | . . 1 . . Spaces Dug . | . . . . . Terrain Destroyed 235 | . 2 3 93 137 Melee . | . . . . . Projectile 27 | . . 3 16 8 AOE 208 | . 2 . 77 129 Terrain Rammed 1 | . . . . 1 Walls Destroyed . | . . . . . Machines Disabled . | . . . . . Actions | -11 -10 -10 -9 -9 --------- Run | Yrd Mat Min Mat Sto Total 1503 | . 318 362 442 381 Wait 168 | . 21 120 27 . Move 1109 | . 274 225 311 299 Hop . | . . . . . Pick Up 19 | . 4 3 5 7 Fast Attach 23 | . 1 1 17 4 Attach 11 | . . . 5 6 Detach 2 | . 1 . 1 . Swap 9 | . 1 3 3 2 Drop 23 | . 3 4 10 6 Fire 129 | . 12 6 63 48 Melee 1 | . 1 . . . Ram 9 | . . . . 9 Kick . | . . . . . Crush . | . . . . . Escape Stasis . | . . . . . Rewire . | . . . . . Trap . | . . . . . Miscellaneous . | . . . . . Route ------- -11/Scrapyard -10/Materials -10/Mines -9/Materials -9/Storage History --------- Turn | Location | Event 1 | -11/Scrapyard | Discovered new exit (range 0) 1 | -11/Scrapyard | Entered Materials 316 | -10/Materials | Build established: Mutant 378 | -10/Materials | Discovered new exit (range 13) 398 | -10/Materials | Entered Mines 416 | -10/Mines | Received a Rocket Launcher from a helpful Derelict 453 | -10/Mines | A weapon hastily lodged in a ceiling crevice suddenly fell to the ground 804 | -10/Mines | Discovered new exit (range 11) 817 | -10/Mines | Entered Materials 817 | -9/Materials | Evolved 2 slots: Propulsion x2 1166 | -9/Materials | Lost 4 parts (1p1n2w) 1285 | -9/Materials | Lost 4 parts (1p3n) 1318 | -9/Materials | Core integrity fell below 50% 1382 | -9/Materials | Discovered new exit (range 5) 1386 | -9/Materials | Identified exit to Storage 1387 | -9/Materials | Entered Storage 1714 | -9/Storage | Core integrity fell below 20% 1740 | -9/Storage | Destroyed 7 combat bots 1743 | -9/Storage | Lost 8 parts (2p2n2u2w) 1787 | -9/Storage | First assault squad dispatched 1795 | -9/Storage | Destroyed by Y-45 Defender with Beam Rifle Last Messages --------------- 01775_ Repair Station disabled. 01775_ Backup Laser I tumbles out of repair station. 01775_ Backup Plating I tumbles out of repair station. 01775_ Backup Power I tumbles out of repair station. 01775_ U-05 Engineer builds a Wall. 01776_ K-01 Serf collects debris. 01778_ Rocket Launcher destroyed. 01779_ Terminal disabled. 01779_ K-01 Serf collects debris. 01780_ U-05 Engineer lays Concrete. 01781_ U-05 Engineer builds a Wall. 01781_ Y-45 Defender destroyed. 01783_ K-01 Serf collects debris. 01785_ U-05 Engineer lays Concrete. 01787_ ALERT: Significant disruption in Zone 6K, multiple assault carriers dispatched. 01789_ Acquired 98 matter. 01790_ K-01 Serf collects debris. 01794_ Rocket Launcher destroyed. 01794_ Destroyed Rocket Launcher. Map ----- +----------------------------------------------------+ | ??? !^! #?### " #??????????? | | ??? ! #?# = #??????????? | | ?? ! ###### #?# # ##??????????? | | ??? = ###/#####????# ### # # #??????????? | | ??? ?? ?????????# = #??????????? | | ????? ?# ""??????????# ##??????????? | | ???????# ""??????????# ##???????????? | | ?????????????????????# ### # ##????????????? | | ?????????????????????# # # #?????????????? | | ?????????????????????# # + ?????????????? | | ?????????????????????# *# # ##????????????? | | ?????????????????????# # # #?????????????? | | ??????????????#T?????# # " # #?????????????? | | ???????????????"????"# # # #?????????????? | | ??????????????## ???"# u# " "" # #?????????????? | | ???????????????T ?? + " "" + ?????????????? | | ???????????????# ? # """" ###?????????????? | | ???????????????# # # """" #???????????????? | | ???????????????# # # #???????????????? | | ???????????????# ?# #########???????????????? | | ???????????????# # # #???????????????? | | ???????????????# #w # u #???????????????? | | ???????????????????## #???????????????? | | ?????##??### ##### = kk[ [ #???????????????? | | ???? %* k#???????????????? | | ???? @ k #???????????????? | | ??? ? #???????????????? | | ??? #??############# * +???????????????? | | ###/###???????????# #???????????????? | | ???????????# [ #???????????????? | | """"" ????????#" [[ # #???????????????? | | """"" #??????#" [[ ####a####???????????????? | | """"" #??????# " [ ???? #??????????????????? | | #??????## g#???? ??????????????????? | | """"" #???????# = ????? ?????????????????? | | """"" #???????# !%! " ?????##?????????????????? | | """"" #???????# ! R" #????????????????????????? | | #???????## Y" " ?????????????????????????? | | ###+#######+####### #?????????????????????????? | | ??????????????????????????? | | ? ??????????????????????????? | | ? ??????????????????????????? | | ###+#########+####???????????????????????????????? | | #?????????????????????????????????????????? | | #?????????????????????????????????????????? | | #?????????????????????????????????????????? | | #?????????????????????????????????????????? | | #?????????????????????????????????????????? | | #?????????????????????????????????????????? | | #?????????????????????????????????????????? | +----------------------------------------------------+ Best States ------------- Heat Dissipation 28 Energy Generation 14 Energy Capacity 265 Matter Stores 300 Matter Capacity 300 Sight Range 18 Robot Scan Range 14 Terrain Scan Density 10 Core Shielding 20 Evasion (%) 64 Recoil Reduction 3 Item Schematics ----------------- None Robot Schematics ------------------ None Fabricated ------------ Nothing Alien Tech Used ----------------- None Achievements -------------- None Challenges ------------ None Game ------ Seed EncryptedRainbowFirepult Manual? 0 Play Time 00:22:10 Cumulative 59.8 hours Start 2024.11.26 @ 14:47:20 End 2024.11.26 @ 15:07:42 Sessions 1 Manual Loads 0 Difficulty Rogue Special Mode None Game No. 16 Rogue 16 Adventurer 0 Explorer 0 Win Type - Total 1 Types 1/0/0/0/0/0/0/0/0 Lore% 17 Gallery% 33 Achievement% 33 Wizard Run 0 Options --------- Layout 0 ASCII 0 Keyboard 0 Movement Mouse Keybinds 0 Fullscreen 2 Font 24/X11 Map View 76x50 Zoom Use 0% Tactical HUD 1 Map Filters NONE Filters NONE Steam 1 RUN: dc64fdb7-bbbc-4088-beeb-78bf917987e9